bitfinex-derivatives/quotes_BTCF0:USTF0_20251120
["timestamp","ask_amount","ask_price","bid_price","bid_amount"]
[1763654681192,0.00011634,89509.0,89501.0,0.31546]
[1763654681482,0.16757,89503.0,89502.0,0.00219803]
[1763654681682,0.32539,89503.0,89500.0,0.0001]
[1763654681889,0.21039,89505.0,89486.0,0.00027937]
[1763654681890,0.32539,89487.0,89486.0,0.00027937]
[1763654682183,0.00016755,89495.0,89487.0,0.0111864]
[1763654682387,0.00016755,89495.0,89486.0,0.0024774]
[1763654682388,0.00016755,89495.0,89494.0,0.3266455]
[1763654682686,0.32539,89515.0,89514.0,0.011183]
[1763654682885,0.32539,89515.0,89514.0,0.00219803]
[1763654683190,0.3608,89533.0,89532.0,0.0111807]
[1763654683376,0.10956,89545.0,89541.0,0.0111796]
[1763654683691,0.47036,89548.0,89543.0,0.0111794]
[1763654683982,0.00016755,89552.0,89548.0,0.0111787]
[1763654684299,0.00016755,89552.0,89551.0,0.00219803]
[1763654684477,0.00024891,89552.0,89551.0,0.31765803]
[1763654684676,0.00024891,89552.0,89551.0,0.67845803]
[1763654684875,0.00024891,89552.0,89551.0,0.36299803]
[1763654685080,0.32563891,89552.0,89551.0,0.36299803]
[1763654685275,0.32563891,89552.0,89551.0,0.00219803]
[1763654685478,0.32563891,89552.0,89534.0,0.00016755]
[1763654685479,0.16757,89540.0,89534.0,0.00016755]
[1763654685677,0.3608,89543.0,89535.0,0.36299803]
[1763654686082,0.32539,89535.0,89534.0,0.00016755]
[1763654686276,0.32539,89535.0,89534.0,0.00236558]
[1763654686485,0.32539,89535.0,89534.0,0.00016755]
[1763654687088,0.0111811,89530.0,89509.0,0.3608]
[1763654687283,0.16757,89511.0,89510.0,0.00219803]
[1763654687486,0.3608,89527.0,89510.0,0.00219803]
[1763654687786,0.3608,89527.0,89493.0,0.0111855]
[1763654687787,0.3608,89513.0,89493.0,0.0111855]
[1763654687982,0.3608,89511.0,89501.0,0.16176]
[1763654688176,0.3608,89511.0,89502.0,0.00219803]
[1763654688382,0.00016755,89512.0,89502.0,0.00219803]
[1763654688383,0.00016755,89512.0,89511.0,0.16176]
[1763654688584,0.0111834,89511.0,89497.0,0.3608]
[1763654688876,0.68619,89499.0,89498.0,0.00219803]
[1763654689077,0.68623598,89499.0,89498.0,0.00219803]
[1763654689282,0.36084598,89499.0,89498.0,0.00219803]
[1763654689488,0.00016755,89512.0,89498.0,0.36299803]
[1763654689988,0.3608,89506.0,89498.0,0.36299803]
[1763654690178,0.32539,89499.0,89498.0,0.36299803]
[1763654690581,0.32539,89499.0,89498.0,0.00219803]
[1763654691084,0.32529,89499.0,89498.0,0.00219803]
[1763654691289,0.3608,89506.0,89498.0,0.00219803]
[1763654691491,0.3719841,89506.0,89498.0,0.00219803]
[1763654691685,0.3608,89506.0,89498.0,0.00219803]
[1763654691892,0.32539,89499.0,89498.0,0.00219803]
[1763654692187,0.0111841,89505.0,89498.0,0.00219803]
[1763654692386,0.3608,89506.0,89498.0,0.00219803]
[1763654692387,0.3719841,89506.0,89498.0,0.00219803]
[1763654692583,0.3608,89506.0,89498.0,0.01338293]
[1763654692783,0.3608,89506.0,89498.0,0.00219803]
[1763654692979,0.32539,89487.0,89479.0,0.3608]
[1763654693186,0.32758803,89487.0,89486.0,0.00101204]
[1763654693385,0.00219803,89487.0,89486.0,0.31647204]
[1763654693588,0.00219803,89487.0,89486.0,0.00101204]
[1763654693789,0.69957443,89487.0,89486.0,0.00027937]
[1763654693991,0.32539,89474.0,89461.0,0.0111895]
[1763654694192,0.00219803,89462.0,89461.0,0.00073267]
[1763654694397,0.32758803,89462.0,89461.0,0.00073267]
[1763654694597,0.32539,89461.0,89460.0,0.00450821]
[1763654694892,0.32758803,89461.0,89460.0,0.00524088]
[1763654695092,0.32758803,89461.0,89440.0,0.2432046]
[1763654695093,0.32539,89441.0,89440.0,0.00782611]
[1763654695291,0.32539,89433.0,89432.0,0.3608]
[1763654695480,0.32539,89433.0,89429.0,0.0111936]
[1763654695481,0.32758803,89433.0,89420.0,0.59617849]
[1763654695690,0.32539,89425.0,89420.0,0.36153267]
[1763654695888,0.16976803,89421.0,89420.0,0.36153267]
[1763654696090,0.00219803,89421.0,89420.0,0.36153267]
[1763654696398,0.00219803,89421.0,89420.0,0.67699267]
[1763654696584,0.00229244,89421.0,89420.0,0.36153267]
[1763654696787,0.32768244,89421.0,89420.0,0.36153267]
[1763654696987,0.00229244,89421.0,89420.0,0.67699267]
[1763654697192,0.03890615,89472.0,89452.0,0.07203]
[1763654697397,0.03865489,89497.0,89484.0,0.0111866]
[1763654697702,0.01109413,89527.0,89498.0,0.31546]
[1763654697992,0.11008,89534.0,89506.0,0.0111839]
[1763654697993,0.00219803,89517.0,89506.0,0.0111839]
[1763654698192,0.00219803,89517.0,89516.0,0.00073267]
[1763654698384,0.32758803,89517.0,89497.0,0.3266451]
[1763654698581,4.076e-05,89516.0,89500.0,0.00016764]
[1763654698788,0.00219803,89515.0,89501.0,0.00073267]
[1763654698987,0.00219803,89515.0,89485.0,0.03716]
[1763654698988,0.16757,89447.0,89446.0,0.01149584]
[1763654699183,0.00999999,89480.0,89468.0,0.0111887]
[1763654699383,0.00999999,89480.0,89446.0,0.01149584]
[1763654699384,0.00073267,89469.0,89447.0,0.09841562]
[1763654699590,0.00999999,89460.0,89453.0,0.0111905]
[1763654699791,0.16830267,89454.0,89453.0,0.00219803]
[1763654700000,0.16830267,89454.0,89448.0,0.09841562]
[1763654700293,0.10091,89452.0,89449.0,0.0111911]
[1763654700501,0.00073267,89450.0,89449.0,0.0111911]
[1763654700689,0.00016764,89462.0,89459.0,0.0111899]
[1763654700887,0.00016764,89462.0,89443.0,0.4826718]
[1763654700888,0.3608,89480.0,89461.0,0.45124602]
[1763654701095,0.27328468,89480.0,89479.0,0.31541924]
[1763654701388,0.00073267,89480.0,89479.0,0.31761727]
[1763654701593,0.32539,89471.0,89470.0,0.3608]
[1763654701801,0.3608,89475.0,89471.0,0.0111884]
[1763654702008,0.3608,89501.0,89500.0,0.0111847]
[1763654702295,0.00073267,89501.0,89500.0,0.00219803]
[1763654702485,0.32659,89487.0,89472.0,0.0111882]
[1763654702688,0.3608,89483.0,89478.0,0.00219803]
[1763654702891,0.36153267,89479.0,89478.0,0.00219803]
[1763654703098,0.00073267,89479.0,89478.0,0.00219803]
[1763654703396,0.00016764,89487.0,89478.0,0.31761723]
[1763654703589,0.00016764,89487.0,89465.0,0.3608]
[1763654703590,0.09847,89447.0,89411.0,0.3608]
[1763654703887,0.09847,89447.0,89417.0,0.55876]
[1763654703888,0.3608,89424.0,89417.0,0.55876]
[1763654704090,0.00219803,89418.0,89417.0,0.0111962]
[1763654704597,0.00219803,89418.0,89417.0,0.87770076]
[1763654704892,0.01339403,89418.0,89417.0,0.86650456]
[1763654705095,0.00219803,89418.0,89417.0,0.55876]
[1763654705594,0.00219803,89418.0,89417.0,0.86650456]
[1763654705798,0.00219803,89418.0,89417.0,0.55876]
[1763654705985,0.00219803,89418.0,89417.0,0.54918837]
[1763654706189,0.40219803,89418.0,89417.0,0.54918837]
[1763654706399,0.72878803,89418.0,89417.0,0.28877837]
[1763654706898,0.72878803,89418.0,89417.0,0.26954846]
[1763654707094,0.32659,89410.0,89409.0,0.00016775]
[1763654707288,0.32659,89410.0,89406.0,0.00027962]
[1763654707289,0.32659,89407.0,89406.0,0.00027962]
[1763654707491,0.52552803,89407.0,89406.0,0.00027962]
[1763654708098,0.68970802,89407.0,89378.0,0.10252]
[1763654708296,0.3608,89381.0,89379.0,0.0112009]
[1763654708494,0.00228719,89380.0,89379.0,0.3214809]
[1763654709000,0.00228719,89380.0,89379.0,0.62922546]
[1763654709204,0.3608,89392.0,89391.0,0.3214794]
[1763654709398,0.00016775,89401.0,89400.0,0.0111983]
[1763654709612,0.00016775,89401.0,89400.0,0.32367633]
[1763654709790,0.3608,89428.0,89408.0,0.10252]
[1763654709993,0.00073267,89427.0,89415.0,0.3608]
[1763654710203,0.16326267,89427.0,89426.0,0.011195]
[1763654710498,0.00073267,89427.0,89426.0,0.01339303]
[1763654710897,0.00073267,89427.0,89426.0,0.00219803]
[1763654711093,0.00073267,89427.0,89418.0,0.00016775]
[1763654711094,0.3377859,89419.0,89418.0,0.00016775]
[1763654711296,0.32659,89404.0,89379.0,0.3608]
[1763654711505,0.0111993,89392.0,89388.0,0.3608]
[1763654711693,0.00073267,89389.0,89388.0,0.00219803]
[1763654711892,0.00073267,89389.0,89368.0,0.3608]
[1763654711893,0.0112005,89383.0,89368.0,0.3608]
[1763654712098,0.3608,89391.0,89368.0,0.3608]
[1763654712099,0.00073267,89369.0,89368.0,0.00219803]
[1763654712901,0.00073267,89369.0,89368.0,0.30994259]
[1763654713099,0.00016784,89377.0,89368.0,0.30994259]
[1763654713303,0.00073267,89376.0,89375.0,0.0112014]
[1763654713495,0.00073267,89376.0,89375.0,0.01339943]
[1763654713802,0.00073267,89376.0,89375.0,0.00219803]
[1763654713803,0.32732267,89376.0,89375.0,0.00219803]
[1763654714001,0.00073267,89376.0,89375.0,0.30994259]
[1763654714410,0.00073267,89376.0,89375.0,0.67074259]
[1763654714602,0.00073267,89376.0,89375.0,0.30994259]
[1763654714906,0.00073267,89376.0,89375.0,0.00219803]
[1763654715207,0.10844,89361.0,89360.0,0.00566924]
[1763654715505,0.58255803,89361.0,89360.0,0.00566924]
[1763654715706,0.36299803,89361.0,89360.0,0.00566924]
[1763654716103,0.36299803,89361.0,89336.0,0.0112063]
[1763654716104,0.3608,89353.0,89326.0,0.00027988]
[1763654716306,0.72379803,89327.0,89326.0,0.15749988]
[1763654716604,0.3608,89335.0,89334.0,0.15722]
[1763654716902,0.36299803,89335.0,89334.0,0.31028]
[1763654717104,0.36313473,89335.0,89334.0,0.31028]
[1763654717306,0.00016784,89348.0,89344.0,0.31028]
[1763654717307,0.3608,89345.0,89344.0,0.31028]
[1763654717502,0.36299803,89345.0,89344.0,0.31028]
[1763654717700,0.36299803,89345.0,89342.0,0.10252]
[1763654717998,0.36299803,89345.0,89344.0,0.31028]
[1763654718207,0.36299803,89345.0,89344.0,0.54907466]
[1763654718403,0.36299803,89345.0,89343.0,0.0112054]
[1763654718404,0.87455803,89345.0,89292.0,0.3608]
[1763654718608,0.87455803,89345.0,89283.0,0.3608]
[1763654718609,0.3608,89327.0,89306.0,0.01121]
[1763654718808,0.36299803,89307.0,89306.0,0.16843]
[1763654719004,0.36299803,89307.0,89283.0,0.3608]
[1763654719207,0.36299803,89307.0,89299.0,0.0112109]
[1763654719407,0.36299803,89307.0,89283.0,0.3608]
[1763654719603,0.3608,89299.0,89296.0,0.0112112]
[1763654719804,0.36299803,89299.0,89296.0,0.0112112]
[1763654720011,0.36299803,89299.0,89298.0,0.32245773]
[1763654720204,0.00219803,89299.0,89298.0,0.32245773]
[1763654720409,0.3608,89316.0,89298.0,0.32245773]
[1763654720612,0.00219803,89315.0,89298.0,0.10252]
[1763654720914,0.3608,89302.0,89301.0,0.31028]
[1763654721106,0.36299803,89302.0,89301.0,0.31028]
[1763654721309,0.36299803,89302.0,89301.0,0.53021773]
[1763654721916,0.00219803,89302.0,89301.0,0.53021773]
[1763654722208,0.3608,89316.0,89315.0,0.3214889]
[1763654722408,0.36299803,89316.0,89315.0,0.54142663]
[1763654722602,0.00016794,89325.0,89324.0,0.3214878]
[1763654722909,0.36096794,89325.0,89324.0,0.53021773]
[1763654723213,0.00016794,89325.0,89324.0,0.53021773]
[1763654723510,0.3608,89336.0,89335.0,0.31028]
[1763654723716,0.3608,89345.0,89335.0,0.53021773]
[1763654724014,0.3608,89355.0,89347.0,0.0112049]
[1763654724199,0.3608,89355.0,89344.0,0.21993773]
[1763654724200,0.00219803,89354.0,89342.0,0.10252]
[1763654724511,0.00219803,89354.0,89326.0,0.34262879]
[1763654724512,0.3608,89345.0,89339.0,0.00016794]
[1763654724812,0.0112059,89339.0,89297.0,0.0112111]
[1763654725110,0.3608,89315.0,89296.0,0.3608]
[1763654725304,0.011212,89292.0,89286.0,0.00037355]
[1763654725510,0.36299803,89287.0,89286.0,0.00037355]
[1763654725906,0.36299803,89287.0,89286.0,0.20034228]
[1763654726222,0.00219803,89287.0,89286.0,0.00037355]
[1763654726605,0.00219803,89287.0,89286.0,0.01158615]
[1763654726801,0.00219803,89287.0,89286.0,0.00037355]
[1763654727907,0.0112144,89272.0,89258.0,0.3608]
[1763654728215,0.0112144,89272.0,89215.0,0.03969653]
[1763654728216,0.0112182,89242.0,89211.0,0.02968236]
[1763654728407,0.00219803,89212.0,89208.0,0.10252]
[1763654728714,0.00219803,89212.0,89210.0,0.11217351]
[1763654728917,9.569e-05,89211.0,89210.0,0.11217351]
[1763654729214,0.00229372,89211.0,89210.0,0.11217351]
[1763654729604,0.00229372,89211.0,89210.0,0.12367574]
[1763654729802,0.00229372,89211.0,89210.0,0.48447574]
[1763654730013,0.00229372,89211.0,89210.0,0.12367574]
[1763654730405,0.00229372,89211.0,89206.0,0.00028025]
[1763654730710,0.3608,89207.0,89206.0,0.00028025]
[1763654730911,0.00219803,89207.0,89206.0,0.00028025]
[1763654731103,0.00219803,89207.0,89206.0,0.47535825]
[1763654731104,3e-08,89207.0,89206.0,0.47535825]
[1763654731306,9.569e-05,89211.0,89207.0,0.0112225]
[1763654731505,9.569e-05,89211.0,89210.0,0.114278]
[1763654731812,0.00082839,89211.0,89210.0,0.00219799]
[1763654732014,0.00082839,89211.0,89210.0,0.114278]
[1763654732215,0.00082839,89211.0,89206.0,0.00028025]
[1763654732511,0.3608,89207.0,89206.0,0.00247824]
[1763654732715,0.3615327,89207.0,89206.0,0.00247824]
[1763654732909,0.3615327,89207.0,89206.0,0.00028025]
[1763654733214,0.3615327,89207.0,89206.0,0.11236026]
[1763654733416,0.3615327,89207.0,89206.0,0.10804752]
[1763654733816,0.7223327,89207.0,89206.0,0.10804752]
[1763654734113,0.8341727,89207.0,89183.0,0.3608]
[1763654734307,0.3608,89187.0,89184.0,0.00219799]
[1763654734502,0.0007327,89185.0,89184.0,0.00219799]
[1763654734717,0.0007327,89185.0,89166.0,0.00036274]
[1763654734914,0.3608,89180.0,89169.0,0.00219799]
[1763654735115,0.0007327,89170.0,89169.0,0.00219799]
[1763654735302,8.594e-05,89186.0,89184.0,0.0112254]
[1763654735503,8.594e-05,89186.0,89184.0,0.00219799]
[1763654735504,0.1125727,89185.0,89184.0,0.00219799]
[1763654735708,0.0007327,89185.0,89184.0,0.00219799]
[1763654736208,8.594e-05,89186.0,89185.0,0.4963653]
[1763654736416,0.11196,89202.0,89193.0,0.4963643]
[1763654736609,0.00090084,89194.0,89193.0,0.00219799]
[1763654736809,0.00090084,89194.0,89173.0,0.3608]
[1763654737019,0.00090084,89194.0,89166.0,0.00036274]
[1763654737020,0.08812,89167.0,89166.0,0.00036274]
[1763654737209,0.0007327,89167.0,89166.0,0.00256073]
[1763654737407,0.00016814,89175.0,89167.0,0.0112275]
[1763654737604,0.00016814,89175.0,89174.0,0.00219799]
[1763654737605,0.00090084,89175.0,89174.0,0.00219799]
[1763654737808,0.3608,89197.0,89188.0,0.0112248]
[1763654738011,0.3608,89197.0,89196.0,0.48514]
[1763654738214,0.3608,89243.0,89218.0,0.0112211]
[1763654738415,0.0007327,89239.0,89219.0,0.00219799]
[1763654738619,0.0007327,89239.0,89221.0,0.0112207]
[1763654738919,0.0007327,89239.0,89194.0,0.15429]
[1763654738920,0.49792346,89257.0,89222.0,0.20216672]
[1763654739315,0.00016814,89238.0,89222.0,0.00219799]
[1763654739712,0.3608,89229.0,89222.0,0.00219803]
[1763654740021,0.08812,89221.0,89220.0,0.00016814]
[1763654740217,0.3608,89229.0,89220.0,0.00236617]
[1763654740421,0.00016814,89238.0,89220.0,0.00236617]
[1763654740617,0.00016814,89238.0,89221.0,0.3608]
[1763654740819,0.00016814,89238.0,89222.0,0.00219803]
[1763654741116,0.00016814,89238.0,89190.0,0.34262879]
[1763654741117,0.0112218,89213.0,89199.0,0.3608]
[1763654741321,0.3608,89215.0,89200.0,0.00219803]
[1763654741722,0.0112228,89205.0,89200.0,0.00219803]
[1763654741911,0.3608,89206.0,89200.0,0.00219803]
[1763654742116,0.00016814,89212.0,89205.0,0.19996873]
[1763654742308,0.00016814,89212.0,89211.0,0.48514]
[1763654742510,0.3608,89245.0,89211.0,0.56296676]
[1763654742708,0.3608,89245.0,89211.0,0.36299803]
[1763654742917,0.3608,89229.0,89211.0,0.00219803]
[1763654743118,0.11212,89255.0,89211.0,0.00219803]
[1763654743119,0.3608,89221.0,89211.0,0.00219803]
[1763654743318,0.3608,89229.0,89219.0,0.19996873]
[1763654743519,0.1759,89216.0,89215.0,0.00016814]
[1763654743714,0.3608,89220.0,89215.0,0.00236617]
[1763654744717,0.1759,89216.0,89215.0,0.00016814]
[1763654744916,0.3608,89220.0,89215.0,0.00016814]
[1763654745120,0.3608,89220.0,89216.0,0.00219803]
[1763654745121,0.011221,89219.0,89216.0,0.00219803]
[1763654745314,0.3608,89220.0,89219.0,0.48514]
[1763654745516,0.3608,89220.0,89219.0,0.00219803]
[1763654745716,0.1759,89216.0,89215.0,0.00016814]
[1763654745929,0.3608,89220.0,89215.0,0.00236617]
[1763654746428,0.3608,89220.0,89202.0,0.3608]
[1763654746429,0.3608,89220.0,89183.0,0.3608]
[1763654746430,0.1759,89203.0,89183.0,0.3608]
[1763654746621,0.1759,89198.0,89197.0,0.19996873]
[1763654746818,0.1759,89190.0,89183.0,0.3608]
[1763654747021,0.3608,89192.0,89184.0,0.00219803]
[1763654747523,0.1759,89184.0,89168.0,0.3608]
[1763654747719,0.35360921,89192.0,89183.0,0.20216676]
[1763654747922,0.36483361,89192.0,89183.0,0.00219803]
[1763654748123,0.0112251,89187.0,89183.0,0.00219803]
[1763654748324,0.35360921,89192.0,89183.0,0.00219803]
[1763654748527,0.0112245,89191.0,89188.0,0.19996873]
[1763654748729,0.0112245,89191.0,89166.0,0.16588034]
[1763654748730,0.056128,89183.0,89156.0,0.3608]
[1763654749026,0.7216,89164.0,89157.0,0.00219803]
[1763654749234,0.0112271,89171.0,89157.0,0.00219803]
[1763654749420,0.7216,89158.0,89130.0,0.3608]
[1763654749623,0.3608,89149.0,89126.0,0.0002805]
[1763654749822,0.47315408,89149.0,89126.0,0.0002805]
[1763654750022,0.3608,89128.0,89127.0,0.01343063]
[1763654750321,0.00016824,89136.0,89132.0,0.0112319]
[1763654750526,0.00016824,89136.0,89135.0,0.00219803]
[1763654750820,0.00016824,89136.0,89126.0,0.0115132]
[1763654751025,0.00016824,89136.0,89127.0,0.00219803]
[1763654751026,0.3608,89128.0,89127.0,0.00219803]
[1763654751225,0.00016824,89136.0,89127.0,0.00219803]
[1763654751425,0.3608,89128.0,89127.0,0.01219803]
[1763654751831,0.3608,89128.0,89127.0,0.00219803]
[1763654752027,0.3608,89128.0,89127.0,0.01219803]
[1763654752436,0.3608,89128.0,89127.0,0.18345522]
[1763654752732,0.3608,89128.0,89117.0,0.3608]
[1763654752733,0.0112345,89112.0,89093.0,0.3608]
[1763654752936,0.34262879,89110.0,89093.0,0.36299803]
[1763654753135,0.3608,89103.0,89100.0,0.15429]
[1763654753323,0.3608,89121.0,89106.0,0.0112352]
[1763654753528,0.00016834,89110.0,89108.0,0.011235]
[1763654753730,0.00016834,89110.0,89109.0,0.00219803]
[1763654754030,0.00016834,89110.0,89109.0,0.15515772]
[1763654754337,0.01150175,89110.0,89109.0,0.00219803]
[1763654754638,0.00026695,89110.0,89109.0,0.15515772]
[1763654755027,0.3608,89135.0,89119.0,0.0112335]
[1763654755228,0.3608,89135.0,89121.0,0.0112333]
[1763654755424,0.3608,89135.0,89120.0,0.00219803]
[1763654755425,0.3608,89135.0,89134.0,0.00219803]
[1763654755627,0.3608,89138.0,89134.0,0.00219803]
[1763654755833,0.3608,89138.0,89137.0,0.00219803]
[1763654756039,0.36090612,89138.0,89137.0,0.00219803]
[1763654756335,0.36090612,89138.0,89129.0,0.00016834]
[1763654756532,0.3608,89130.0,89129.0,0.00236637]
[1763654757141,0.3608,89130.0,89129.0,0.15532606]
[1763654757745,0.3608,89130.0,89129.0,0.00236637]
[1763654758035,0.3608,89130.0,89129.0,0.15532606]
[1763654758232,0.00010612,89138.0,89134.0,0.0112316]
[1763654758433,0.00010612,89138.0,89137.0,0.51595772]
[1763654758634,0.47364,89178.0,89148.0,0.15429]
[1763654758842,0.3608,89187.0,89183.0,0.0112255]
[1763654759140,0.70235138,89196.0,89186.0,0.15515772]
[1763654759141,0.34155138,89196.0,89186.0,0.15515772]
[1763654759335,0.3608,89199.0,89194.0,0.15429]
[1763654759539,0.3608,89199.0,89198.0,0.15515772]
[1763654759734,0.3608,89199.0,89190.0,0.00016824]
[1763654760040,0.3608,89191.0,89190.0,0.00236627]
[1763654760336,0.0112276,89167.0,89161.0,0.3608]
[1763654760537,0.3608,89191.0,89127.0,0.3608]
[1763654760538,0.0112302,89147.0,89127.0,0.3608]
[1763654760731,0.0112302,89147.0,89119.0,0.0112335]
[1763654760732,0.21897051,89144.0,89117.0,0.3608]
[1763654760932,0.0112345,89112.0,89108.0,0.3608]
[1763654761131,0.3608,89124.0,89090.0,0.3608]
[1763654761132,0.3608,89115.0,89090.0,0.3608]
[1763654761337,0.3608,89096.0,89094.0,0.00016835]
[1763654761541,0.3608,89105.0,89102.0,0.15429]
[1763654761744,0.00016835,89111.0,89102.0,0.15429]
[1763654761745,0.00016835,89111.0,89109.0,0.0112348]
[1763654761944,0.0112317,89135.0,89109.0,0.0112348]
[1763654761945,0.3608,89156.0,89129.0,0.0112323]
[1763654762132,0.3608,89156.0,89128.0,0.15429]
[1763654762133,0.3608,89179.0,89155.0,0.00219803]
[1763654762334,0.3608,89173.0,89155.0,0.00219803]
[1763654762640,0.0673312,89213.0,89155.0,0.00219803]
[1763654762641,0.3608,89163.0,89155.0,0.00219803]
[1763654762842,0.3608,89178.0,89172.0,0.0112269]
[1763654763036,0.36096824,89184.0,89172.0,0.00219803]
[1763654763341,0.00016824,89184.0,89178.0,0.3608]
[1763654763530,0.01139374,89184.0,89179.0,0.00219803]
[1763654763733,6.824e-05,89184.0,89179.0,0.00219803]
[1763654763941,0.3608,89183.0,89180.0,0.00219803]
[1763654764145,6.824e-05,89184.0,89181.0,0.0112258]
[1763654764330,0.3608,89200.0,89192.0,0.0112244]
[1763654764547,0.3608,89205.0,89200.0,0.0112234]
[1763654764741,0.3608,89218.0,89208.0,0.16168]
[1763654764938,0.3608,89218.0,89209.0,0.00219803]
[1763654765350,0.3608,89218.0,89210.0,0.0112221]
[1763654765640,0.7216,89218.0,89217.0,0.00219803]
[1763654765841,0.7216,89218.0,89205.0,0.00016814]
[1763654765842,0.0112224,89209.0,89205.0,0.00016814]
[1763654766043,0.3608,89206.0,89181.0,0.0112257]
[1763654766239,0.00010009,89208.0,89201.0,0.0112232]
[1763654766545,0.3608,89254.0,89244.0,0.0112178]
[1763654766743,0.3608,89257.0,89253.0,0.00219803]
[1763654766943,0.3608,89261.0,89253.0,0.00219803]
[1763654767146,0.00016814,89264.0,89254.0,0.0112166]
[1763654767347,0.3608,89262.0,89255.0,0.00219803]
[1763654767547,0.3608,89262.0,89246.0,0.00016814]
[1763654767739,0.3608,89251.0,89247.0,0.00219803]
[1763654768048,0.3608,89261.0,89247.0,0.00219803]
[1763654768345,0.00016814,89264.0,89263.0,0.0112155]
[1763654768548,0.3608,89273.0,89269.0,0.0112147]
[1763654768846,0.3608,89288.0,89272.0,0.00219803]
[1763654769044,0.3608,89280.0,89273.0,1.5]
[1763654769244,0.3608,89278.0,89242.0,0.3608]
[1763654769448,0.3608,89254.0,89243.0,0.00219803]
[1763654769642,0.00016804,89269.0,89251.0,0.00016804]
[1763654769947,0.3608,89282.0,89268.0,0.36299803]
[1763654770337,0.34262879,89280.0,89268.0,0.36299803]
[1763654770542,0.3608,89269.0,89268.0,0.00219803]
[1763654770939,0.00016804,89277.0,89268.0,0.00219803]
[1763654771253,0.00016804,89277.0,89273.0,0.3608]
[1763654771442,0.00016804,89277.0,89276.0,0.00219803]
[1763654772058,0.3608,89305.0,89276.0,0.76299803]
[1763654772246,0.3608,89309.0,89300.0,0.3608]
[1763654772448,0.3608,89309.0,89301.0,0.00219803]
[1763654772848,0.3608,89324.0,89308.0,0.3608]
[1763654773054,0.00016794,89325.0,89321.0,0.3608]
[1763654773250,0.00016794,89325.0,89310.0,0.3608]
[1763654773449,0.3608,89322.0,89310.0,0.00219803]
[1763654773653,0.00016794,89325.0,89314.0,0.3608]
[1763654773950,0.00016794,89325.0,89324.0,0.00219803]
[1763654774151,0.0112039,89356.0,89324.0,0.00219803]
[1763654774152,0.3608,89355.0,89332.0,0.0112067]
[1763654774351,0.3608,89355.0,89324.0,0.36299803]
[1763654774352,0.3608,89355.0,89340.0,0.3608]
[1763654774548,0.3608,89355.0,89354.0,0.00219803]
[1763654775043,0.3608,89364.0,89354.0,0.00219803]
[1763654775044,0.00010038,89363.0,89354.0,0.00219803]
[1763654775246,0.3608,89392.0,89362.0,0.3608]
[1763654775457,0.3608,89373.0,89363.0,0.00219803]
[1763654775953,0.3608,89389.0,89363.0,0.00219803]
[1763654776147,0.3608,89381.0,89364.0,0.3720028]
[1763654776350,0.3608,89381.0,89380.0,0.00219803]
[1763654776556,0.3608,89401.0,89381.0,0.0112007]
[1763654776756,0.3719982,89401.0,89382.0,0.00236587]
[1763654776953,0.3608,89386.0,89382.0,0.00236587]
[1763654777148,0.3608,89389.0,89382.0,0.00236587]
[1763654777351,0.3608,89401.0,89388.0,0.0111997]
[1763654777644,0.00027962,89406.0,89401.0,0.0111982]
[1763654777851,0.3608,89402.0,89384.0,0.11292]
[1763654778041,0.3608,89394.0,89389.0,0.00219803]
[1763654778246,0.3608,89394.0,89368.0,0.3608]
[1763654778247,0.0111999,89388.0,89368.0,0.3608]
[1763654778443,0.0112004,89383.0,89368.0,0.3608]
[1763654778644,0.0112027,89366.0,89348.0,0.52248]
[1763654778847,0.3608,89384.0,89349.0,0.00219803]
[1763654778848,0.3608,89353.0,89349.0,0.00219803]
[1763654779058,0.3608,89353.0,89339.0,0.3608]
[1763654779358,0.0112049,89347.0,89340.0,0.00219803]
[1763654779561,0.3608,89343.0,89340.0,0.00219803]
[1763654779756,0.3608,89351.0,89340.0,0.36299803]
[1763654780058,0.00016751,89352.0,89340.0,0.36299803]
[1763654780255,0.00016751,89352.0,89351.0,0.3608]
[1763654780452,0.3608,89370.0,89351.0,0.36299803]
[1763654780751,0.3608,89388.0,89367.0,0.3608]
[1763654780952,0.3608,89378.0,89376.0,0.16168]
[1763654781154,0.11292,89377.0,89348.0,0.52248]
[1763654781344,0.0112042,89353.0,89348.0,0.36299803]
[1763654781545,0.0112063,89336.0,89330.0,0.3608]
[1763654781754,0.3720063,89336.0,89327.0,0.00016784]
[1763654782159,0.0112073,89328.0,89327.0,0.00016784]
[1763654782459,0.0112073,89328.0,89298.0,0.3608]
[1763654782460,0.0112106,89303.0,89298.0,0.3608]
[1763654782659,0.7216,89299.0,89272.0,0.3608]
[1763654782851,0.3608,89299.0,89298.0,0.00219803]
[1763654783363,0.36090155,89299.0,89280.0,0.3608]
[1763654783563,0.36090155,89299.0,89298.0,0.00219803]
[1763654783564,0.00010155,89299.0,89298.0,0.00219803]
[1763654784452,0.00016794,89307.0,89303.0,0.0112104]
[1763654784654,0.3720101,89306.0,89290.0,0.00016794]
[1763654784857,0.3720117,89294.0,89290.0,0.00016794]
[1763654785150,0.3608,89291.0,89290.0,0.00016794]
[1763654785352,0.3608,89291.0,89256.0,0.3608]
[1763654785353,0.0112142,89274.0,89256.0,0.3608]
[1763654785558,0.0112111,89298.0,89256.0,0.3608]
[1763654785559,0.3608,89270.0,89265.0,0.00219803]
[1763654785758,0.3608,89278.0,89265.0,0.00219803]
[1763654785952,0.3608,89278.0,89266.0,0.0112151]
[1763654786156,0.3608,89278.0,89277.0,0.00219803]
[1763654786365,0.3608,89278.0,89269.0,0.00016804]
[1763654786552,0.3608,89278.0,89270.0,0.00219803]
[1763654786755,0.3608,89278.0,89271.0,0.00219803]
[1763654786756,0.7216,89278.0,89271.0,0.00219803]
[1763654786961,0.00016804,89286.0,89272.0,0.0112143]
[1763654787164,0.3608,89276.0,89273.0,0.00219803]
[1763654787356,0.0112145,89271.0,89269.0,0.00016804]
[1763654787561,0.0112142,89274.0,89252.0,0.0112168]
[1763654787758,0.3608,89262.0,89253.0,0.00219803]
[1763654787957,0.3608,89262.0,89234.0,0.3608]
[1763654787958,0.0112182,89242.0,89223.0,0.0112204]
[1763654788163,0.77222266,89262.0,89199.0,0.3608]
[1763654788164,0.3608,89224.0,89199.0,0.3608]
[1763654788467,0.3608,89224.0,89141.0,0.0561542]
[1763654788468,0.0112236,89199.0,89171.0,0.0112269]
[1763654788766,0.0112199,89228.0,89131.0,0.0112321]
[1763654788767,0.00219803,89198.0,89175.0,0.16168]
[1763654788953,9.082e-05,89197.0,89183.0,0.0112255]
[1763654789155,0.00219803,89196.0,89184.0,0.00073267]
[1763654789357,9.082e-05,89197.0,89184.0,0.00073267]
[1763654789358,9.082e-05,89197.0,89191.0,0.0112245]